bitfinex/quotes_BTCUSD_20250825
["timestamp","ask_amount","ask_price","bid_price","bid_amount"]
[1756085760444,7.7007679,113120.0,113110.0,0.00736]
[1756085761020,7.72148741,113120.0,113110.0,0.00736]
[1756085761244,7.72148741,113120.0,113110.0,1e-08]
[1756085761245,7.73994643,113120.0,113110.0,1e-08]
[1756085761478,7.83303443,113120.0,113110.0,1e-08]
[1756085761979,7.83202443,113120.0,113110.0,1e-08]
[1756085762210,0.17681902,113110.0,113100.0,0.00361]
[1756085762431,6.01651814,113110.0,113100.0,0.00571417]
[1756085763289,6.02481056,113110.0,113100.0,0.00571417]
[1756085763536,6.02643056,113110.0,113100.0,0.00054417]
[1756085763762,6.36643056,113110.0,113100.0,0.00054417]
[1756085763978,6.40686424,113110.0,113100.0,0.00054417]
[1756085764471,6.49373389,113110.0,113100.0,0.00054417]
[1756085764925,6.49473389,113110.0,113100.0,0.00054417]
[1756085765157,6.51218291,113110.0,113100.0,0.00054417]
[1756085765383,1.91286637,113100.0,113090.0,0.5004]
[1756085765625,7.69200865,113100.0,113090.0,0.5004]
[1756085765849,7.26520335,113100.0,113090.0,0.5004]
[1756085766080,7.2718121,113100.0,113090.0,1e-08]
[1756085766316,7.2714221,113100.0,113090.0,1e-08]
[1756085766998,7.2718121,113100.0,113090.0,0.00100001]
[1756085767211,0.53429931,113090.0,113080.0,0.0004]
[1756085767432,7.75977443,113090.0,113080.0,0.0004]
[1756085767878,7.77361619,113090.0,113080.0,0.0004]
[1756085768143,7.81776236,113090.0,113080.0,0.0004]
[1756085769212,7.77722619,113090.0,113080.0,0.0004]
[1756085769668,7.32882619,113090.0,113080.0,0.0004]
[1756085769890,7.34790297,113090.0,113080.0,0.0004]
[1756085770318,7.32882619,113090.0,113080.0,0.0004]
[1756085770975,7.31498443,113090.0,113080.0,0.0004]
[1756085771403,7.31598443,113090.0,113080.0,0.00557]
[1756085771834,7.22911478,113090.0,113080.0,0.00557]
[1756085772090,7.22811478,113090.0,113080.0,0.00557]
[1756085772305,7.23739119,113090.0,113080.0,0.00557]
[1756085772668,7.23580119,113090.0,113080.0,0.00557]
[1756085773262,7.23680119,113090.0,113080.0,0.00557]
[1756085773483,7.30997423,113090.0,113080.0,0.00557]
[1756085773988,7.29252521,113090.0,113080.0,0.00557]
[1756085774397,7.30636825,113090.0,113080.0,0.00557]
[1756085775818,5.49716349,113090.0,113080.0,0.00557]
[1756085776054,6.38423609,113090.0,113080.0,0.00557]
[1756085776658,5.14788708,113090.0,113080.0,0.00557]
[1756085776885,6.01590294,113090.0,113080.0,0.00557]
[1756085777536,6.01490294,113090.0,113080.0,0.00557]
[1756085777741,6.44177259,113090.0,113080.0,0.00557]
[1756085777964,5.48788708,113090.0,113080.0,0.00557]
[1756085778175,6.35590294,113090.0,113080.0,0.00557]
[1756085778381,6.35490294,113090.0,113080.0,0.00657]
[1756085780723,6.3410599,113090.0,113080.0,0.00657]
[1756085784281,6.35490184,113090.0,113080.0,0.00657]
[1756085788457,5.48688598,113090.0,113080.0,0.00657]
[1756085788668,6.35490184,113090.0,113080.0,0.00657]
[1756085789693,5.57375563,113090.0,113080.0,0.00657]
[1756085789910,6.35490184,113090.0,113080.0,0.00657]
[1756085790353,6.35652184,113090.0,113080.0,0.00657]
[1756085791057,7.2245377,113090.0,113080.0,0.0014]
[1756085791374,7.24111362,113090.0,113080.0,0.0014]
[1756085791811,7.24111362,113090.0,113080.0,0.0064]
[1756085792033,6.37147776,113090.0,113080.0,0.0064]
[1756085793388,5.5034619,113090.0,113080.0,0.0064]
[1756085793610,6.37147776,113090.0,113080.0,0.0064]
[1756085794063,6.35763582,113090.0,113080.0,0.0064]
[1756085796543,5.48961996,113090.0,113080.0,0.0064]
[1756085796753,6.35763582,113090.0,113080.0,0.0054]
[1756085796962,6.3576464,113090.0,113080.0,0.0064]
[1756085797174,6.37148789,113090.0,113080.0,0.0064]
[1756085797387,6.37148789,113090.0,113080.0,0.0054]
[1756085797623,6.37148789,113090.0,113080.0,0.0074]
[1756085798152,6.37148789,113090.0,113080.0,0.0084]
[1756085799424,6.28460314,113090.0,113080.0,0.0084]
[1756085799834,6.28099314,113090.0,113080.0,0.0084]
[1756085800252,6.26440664,113090.0,113080.0,0.0084]
[1756085800681,6.26602664,113090.0,113080.0,0.0084]
[1756085800888,6.43978104,113090.0,113080.0,0.0034]
[1756085801097,6.35291139,113090.0,113080.0,0.0034]
[1756085801525,6.36949978,113090.0,113080.0,0.0034]
[1756085801734,7.22367415,113090.0,113080.0,0.0034]
[1756085801963,7.24179415,113090.0,113080.0,0.0034]
[1756085802386,7.3286638,113090.0,113080.0,0.0034]
[1756085802817,7.33695986,113090.0,113080.0,0.0014]
[1756085803032,7.33695986,113090.0,113080.0,0.0004]
[1756085803244,7.33695986,113090.0,113080.0,0.0014]
[1756085804487,7.35608116,113090.0,113080.0,0.0014]
[1756085804897,7.28305436,113090.0,113080.0,0.0014]
[1756085806620,7.28409083,113090.0,113080.0,0.0014]
[1756085806824,7.28308083,113090.0,113080.0,0.0014]
[1756085807444,7.28308046,113090.0,113080.0,0.0014]
[1756085808960,7.2893078,113090.0,113080.0,0.0014]
[1756085809184,7.37617745,113090.0,113080.0,0.0014]
[1756085809608,7.2893078,113090.0,113080.0,0.0014]
[1756085809822,7.28308046,113090.0,113080.0,0.0014]
[1756085811174,7.28930724,113090.0,113080.0,0.0014]
[1756085811630,7.28308046,113090.0,113080.0,0.0014]
[1756085812469,7.28308046,113090.0,113080.0,0.00441]
[1756085812678,7.28308046,113090.0,113080.0,0.0064]
[1756085812679,7.28146046,113090.0,113080.0,0.0064]
[1756085813326,6.4134446,113090.0,113080.0,0.0064]
[1756085813552,5.54542874,113090.0,113080.0,0.0064]
[1756085813771,6.4134446,113090.0,113080.0,0.0064]
[1756085814045,6.4150646,113090.0,113080.0,0.0064]
[1756085814260,7.37096011,113090.0,113080.0,0.0014]
[1756085814490,7.37718639,113090.0,113080.0,0.0014]
[1756085814708,7.39463541,113090.0,113080.0,0.0014]
[1756085815164,7.40465979,113090.0,113080.0,0.0014]
[1756085815616,7.40465979,113090.0,113080.0,0.0004]
[1756085816308,7.37456628,113090.0,113080.0,1e-08]
[1756085816544,7.38078235,113090.0,113080.0,1e-08]
[1756085816934,7.40464958,113090.0,113080.0,1e-08]
[1756085817381,7.38177934,113090.0,113080.0,1e-08]
[1756085817590,2.71874667,113080.0,113070.0,0.0004]
[1756085817843,7.72420533,113080.0,113070.0,1e-08]
[1756085818057,7.7712595,113080.0,113070.0,1e-08]
[1756085818261,7.76123676,113080.0,113070.0,1e-08]
[1756085819319,0.53433059,113070.0,113060.0,0.0004]
[1756085819534,6.38397021,113070.0,113060.0,0.0004]
[1756085820155,6.48641538,113070.0,113060.0,0.0004]
[1756085820373,6.40309273,113070.0,113060.0,0.0004]
[1756085820578,6.4032365,113070.0,113060.0,0.0004]
[1756085821009,6.38416748,113070.0,113060.0,0.00561]
[1756085821227,6.38416748,113070.0,113060.0,0.00661]
[1756085821448,6.35674747,113070.0,113060.0,0.00561]
[1756085821792,5.48873161,113070.0,113060.0,0.00561]
[1756085821908,0.62303261,113070.0,113060.0,0.00561]
[1756085822117,1.53115754,113070.0,113060.0,0.00561]
[1756085822987,6.39685654,113070.0,113060.0,0.00561]
[1756085824098,6.39685654,113070.0,113060.0,0.00761]
[1756085824450,6.41070071,113070.0,113060.0,0.00761]
[1756085825334,6.41208071,113070.0,113060.0,0.00861]
[1756085825770,6.41070071,113070.0,113060.0,0.00861]
[1756085829712,1.54500171,113070.0,113060.0,0.00861]
[1756085829928,1.45811696,113070.0,113060.0,0.00861]
[1756085830145,1.54498661,113070.0,113060.0,0.00861]
[1756085830359,6.32381596,113070.0,113060.0,0.00861]
[1756085832676,5.4558001,113070.0,113060.0,0.00861]
[1756085832892,6.32381596,113070.0,113060.0,0.00861]
[1756085834913,5.4558001,113070.0,113060.0,0.00861]
[1756085835194,6.32381596,113070.0,113060.0,0.00861]
[1756085835994,0.2501011,113070.0,113060.0,0.00861]
[1756085836269,1.10072579,113070.0,113060.0,0.00861]
[1756085836538,1.44072579,113070.0,113060.0,0.00861]
[1756085836837,0.23270993,113070.0,113060.0,0.00861]
[1756085837371,0.05582836,113070.0,113060.0,0.00861]
[1756085837577,0.23270993,113070.0,113060.0,0.01082121]
[1756085837834,0.23270993,113070.0,113060.0,0.0298556]
[1756085838126,0.23270993,113070.0,113060.0,0.01082121]
[1756085838649,0.23270993,113070.0,113060.0,0.00861]
[1756085838700,0.05582836,113070.0,113060.0,0.00861]
[1756085838932,0.05582836,113070.0,113060.0,0.09549475]
[1756085840036,0.05582836,113070.0,113060.0,0.09670596]
[1756085840250,0.05582836,113070.0,113060.0,0.12510777]
[1756085840471,0.05582836,113070.0,113060.0,0.12531898]
[1756085840682,0.05582836,113070.0,113060.0,0.12310777]
[1756085840895,1.10072579,113070.0,113060.0,0.12089656]
[1756085841099,1.10072579,113070.0,113060.0,0.00561]
[1756085841337,1.10072579,113070.0,113060.0,0.00861]
[1756085842004,1.10072579,113070.0,113060.0,0.01261]
[1756085842251,1.10234579,113070.0,113060.0,0.0034]
[1756085842470,1.44234579,113070.0,113060.0,0.00646]
[1756085842692,1.44234579,113070.0,113060.0,0.0004]
[1756085843122,1.44234579,113070.0,113060.0,0.0024]
[1756085843783,1.44234579,113070.0,113060.0,0.00861]
[1756085844012,1.44234579,113070.0,113060.0,0.00661]
[1756085844223,6.30804479,113070.0,113060.0,0.0024]
[1756085844446,6.39492954,113070.0,113060.0,0.0024]
[1756085844658,6.41151134,113070.0,113060.0,0.0024]
[1756085845396,6.39492954,113070.0,113060.0,0.0024]
[1756085845636,6.49939105,113070.0,113060.0,0.0024]
[1756085845863,7.37569836,113070.0,113060.0,0.0024]
[1756085846088,6.52678466,113070.0,113060.0,0.0024]
[1756085846520,6.54062986,113070.0,113060.0,0.0014]
[1756085846945,6.54162986,113070.0,113060.0,0.0014]
[1756085847159,6.45375021,113070.0,113060.0,0.0004]
[1756085847397,6.45275021,113070.0,113060.0,0.0004]
[1756085847625,6.45576021,113070.0,113060.0,0.0004]
[1756085847846,6.45935021,113070.0,113060.0,0.0004]
[1756085849199,6.45934792,113070.0,113060.0,0.0004]
[1756085849405,6.53720965,113070.0,113060.0,0.0004]
[1756085849877,7.40522551,113070.0,113060.0,0.0004]
[1756085850092,6.54342691,113070.0,113060.0,0.0004]
[1756085854217,6.39335783,113070.0,113060.0,0.0004]
[1756085854562,6.41821235,113070.0,113060.0,0.0004]
[1756085856563,7.28622821,113070.0,113060.0,0.0004]
[1756085856773,6.41821235,113070.0,113060.0,0.0004]
[1756085858504,6.41821235,113070.0,113060.0,0.00553]
[1756085858897,6.44937283,113070.0,113060.0,0.00351]
[1756085859107,6.44937283,113070.0,113060.0,0.0004]
[1756085859525,6.44937283,113070.0,113060.0,0.00553]
[1756085859951,6.44937283,113070.0,113060.0,0.0004]
[1756085860672,6.48894801,113070.0,113060.0,0.0004]
[1756085861088,6.45778753,113070.0,113060.0,0.00553]
[1756085861294,6.24608451,113070.0,113060.0,0.00553]
[1756085861516,6.42296608,113070.0,113060.0,0.00553]
[1756085861752,6.43770181,113070.0,113060.0,0.00553]
[1756085861971,6.43770181,113070.0,113060.0,0.0004]
[1756085864166,7.30570333,113070.0,113060.0,0.0004]
[1756085864404,7.39257298,113070.0,113060.0,0.0004]
[1756085864628,7.39257226,113070.0,113060.0,0.0004]
[1756085865270,7.30570261,113070.0,113060.0,0.0004]
[1756085865480,6.43768675,113070.0,113060.0,0.0004]
[1756085866549,7.30570261,113070.0,113060.0,0.0004]
[1756085869292,7.3247923,113070.0,113060.0,0.0004]
[1756085870278,7.33100983,113070.0,113060.0,0.0004]
[1756085871941,6.44914877,113070.0,113060.0,0.0004]
[1756085872146,6.44914877,113070.0,113060.0,0.00351]
[1756085872653,6.44914877,113070.0,113060.0,0.00553]
[1756085873804,6.43097708,113070.0,113060.0,0.00553]
[1756085874011,6.44921921,113070.0,113060.0,0.00553]
[1756085874220,6.43350615,113070.0,113060.0,0.00553]
[1756085874577,5.56387029,113070.0,113060.0,0.00553]
[1756085874794,6.43188965,113070.0,113060.0,0.00553]
[1756085875530,6.44611504,113070.0,113060.0,0.00553]
[1756085875745,7.3141309,113070.0,113060.0,0.00351]
[1756085875956,7.3141309,113070.0,113060.0,0.0004]
[1756085876173,6.44611504,113070.0,113060.0,0.00351]
[1756085876619,7.3141309,113070.0,113060.0,0.00351]
[1756085876839,6.44611504,113070.0,113060.0,0.00559]
[1756085877266,6.44612295,113070.0,113060.0,0.00559]
[1756085879354,6.44612295,113070.0,113060.0,0.0004]
[1756085879595,6.44612295,113070.0,113060.0,0.00351]
[1756085880675,6.43189756,113070.0,113060.0,0.00559]
[1756085880902,6.40180646,113070.0,113060.0,0.00559]
[1756085881120,6.31497692,113070.0,113060.0,0.00559]
[1756085881337,6.29583202,113070.0,113060.0,0.00559]
[1756085881787,5.95583202,113070.0,113060.0,0.00559]
[1756085882007,6.28752346,113070.0,113060.0,0.00559]
[1756085882664,6.28753124,113070.0,113060.0,0.00559]
[1756085882971,1.08183224,113070.0,113060.0,0.00559]
[1756085883228,0.21022638,113070.0,113060.0,0.00559]
[1756085883432,0.1936173,113070.0,113060.0,0.00559]
[1756085883641,0.88475159,113070.0,113060.0,0.00559]
[1756085883860,1.06163316,113070.0,113060.0,0.00780121]
[1756085884079,1.06063316,113070.0,113060.0,0.00559]
[1756085884721,1.06063316,113070.0,113060.0,0.00659]
[1756085884932,1.06063316,113070.0,113060.0,0.00559]
[1756085885147,0.01573573,113070.0,113060.0,0.00559]
[1756085885347,0.01573573,113070.0,113060.0,0.27258318]
[1756085885554,0.05548622,113070.0,113060.0,0.09247475]
[1756085885759,1.0587246,113080.0,113060.0,0.12432412]
[1756085885999,1.0587246,113080.0,113070.0,0.00311]
[1756085886223,0.88185867,113080.0,113070.0,0.09428576]
[1756085886442,0.88185867,113080.0,113070.0,0.09207475]
[1756085886657,0.88185867,113080.0,113070.0,0.09428576]
[1756085886907,0.88185867,113080.0,113070.0,0.12221508]
[1756085887116,0.89652504,113080.0,113070.0,0.12221508]
[1756085887344,1.07339097,113080.0,113070.0,0.12000407]
[1756085887552,1.07339097,113080.0,113070.0,0.09207475]
[1756085887756,1.07339097,113080.0,113070.0,0.09307475]
[1756085888215,1.07339097,113080.0,113070.0,0.09407475]
[1756085888860,1.94140683,113080.0,113070.0,0.00719]
[1756085889070,1.9820228,113080.0,113070.0,0.00719]
[1756085889287,7.1877218,113080.0,113070.0,0.002]
[1756085889736,7.1877218,113080.0,113070.0,0.00719]
[1756085890174,7.1877218,113080.0,113070.0,0.002]
[1756085890603,7.1877218,113080.0,113070.0,0.00511]
[1756085890833,7.1877218,113080.0,113070.0,0.00719]
[1756085892308,7.17226899,113080.0,113070.0,0.00719]
[1756085894010,1.43855413,113080.0,113070.0,0.00719]
[1756085894434,2.30656999,113080.0,113070.0,0.00719]
[1756085895519,2.32041263,113080.0,113070.0,0.00719]
[1756085896991,1.45239677,113080.0,113070.0,0.00719]
[1756085897659,0.58438091,113080.0,113070.0,0.00719]
[1756085897876,1.45239677,113080.0,113070.0,0.00719]
[1756085898123,0.58438091,113080.0,113070.0,0.00719]
[1756085898345,2.32041263,113080.0,113070.0,0.00719]
[1756085899247,2.32080263,113080.0,113070.0,0.002]
[1756085899665,7.18650163,113080.0,113070.0,0.002]
[1756085900678,7.19409163,113080.0,113070.0,0.002]
[1756085901917,7.19409163,113080.0,113070.0,0.00408]
[1756085902118,7.19409163,113080.0,113070.0,0.00511]
[1756085902499,7.19409163,113080.0,113070.0,0.002]
[1756085902728,7.18024899,113080.0,113070.0,0.002]
[1756085903958,7.18125899,113080.0,113070.0,0.002]
[1756085904357,7.14225302,113080.0,113070.0,0.002]
[1756085904494,7.14124302,113080.0,113070.0,0.002]
[1756085905870,7.15508647,113080.0,113070.0,0.002]
[1756085906787,7.15508647,113080.0,113070.0,0.00405]
[1756085907038,7.15508647,113080.0,113070.0,0.002]
[1756085908018,7.24298122,113080.0,113070.0,0.002]
[1756085909100,7.24298122,113080.0,113070.0,0.001]
[1756085909324,7.27036953,113080.0,113070.0,0.001]
[1756085909545,0.17688157,113070.0,113060.0,0.00088079]
[1756085909765,5.91221643,113070.0,113060.0,0.00088079]
[1756085910317,5.91689643,113070.0,113060.0,0.00088079]
[1756085911341,6.07404385,113070.0,113060.0,0.00088079]
[1756085911732,6.00478118,113070.0,113060.0,0.00188079]
[1756085911965,6.00378118,113070.0,113060.0,0.00188079]
[1756085912169,6.00478118,113070.0,113060.0,0.00088079]
[1756085914175,6.34478118,113070.0,113060.0,0.00088079]
[1756085914377,7.24018009,113070.0,113060.0,0.00088079]
[1756085914583,6.37216423,113070.0,113060.0,0.00088079]
[1756085914788,6.38258421,113070.0,113060.0,0.00088079]
[1756085915458,6.38258174,113070.0,113060.0,0.00088079]
[1756085915678,6.39541746,113070.0,113060.0,0.00088079]
[1756085915903,6.38499748,113070.0,113060.0,0.00088079]
[1756085916549,6.37671201,113070.0,113060.0,0.00088079]
[1756085917474,6.3576169,113070.0,113060.0,0.00088079]
[1756085917685,6.37670089,113070.0,113060.0,0.00088079]
[1756085917891,6.46357054,113070.0,113060.0,0.00088079]
[1756085919543,6.44448655,113070.0,113060.0,0.00088079]
[1756085919756,6.3576169,113070.0,113060.0,0.00088079]
[1756085920339,6.3576169,113070.0,113060.0,0.00612079]
[1756085920340,6.3559969,113070.0,113060.0,0.00612079]
[1756085920932,6.3576169,113070.0,113060.0,0.00612079]
[1756085922004,6.3576169,113070.0,113060.0,0.00088079]
[1756085925164,6.3559969,113070.0,113060.0,0.00612079]
[1756085926474,6.3563769,113070.0,113060.0,0.00612079]
[1756085926704,6.3563769,113070.0,113060.0,0.00407079]
[1756085927337,6.3563769,113070.0,113060.0,0.00088079]
[1756085927761,7.24566648,113070.0,113060.0,0.00088079]
[1756085927970,7.24667648,113070.0,113060.0,0.00088079]
[1756085928606,7.26576172,113070.0,113060.0,0.00088079]
[1756085929303,7.29149465,113070.0,113060.0,1e-08]
[1756085929519,7.27764893,113070.0,113060.0,1e-08]
[1756085929944,7.27663893,113070.0,113060.0,1e-08]
[1756085930592,7.27763893,113070.0,113060.0,1e-08]
[1756085930811,7.27663893,113070.0,113060.0,1e-08]
[1756085930947,7.25436521,113070.0,113060.0,1e-08]
[1756085931169,7.25536521,113070.0,113060.0,1e-08]
[1756085931361,7.2480813,113070.0,113060.0,1e-08]
[1756085931570,7.25636828,113070.0,113060.0,1e-08]
[1756085932427,7.29573734,113070.0,113060.0,1e-08]
[1756085933379,7.25636828,113070.0,113060.0,1e-08]
[1756085933805,7.25636828,113070.0,113060.0,0.00319001]
[1756085934252,7.25636828,113070.0,113060.0,1e-08]
[1756085934457,6.38959242,113070.0,113060.0,1e-08]
[1756085934671,6.40343861,113070.0,113060.0,1e-08]
[1756085935098,6.38436959,113070.0,113060.0,0.00516001]
[1756085936186,6.38597959,113070.0,113060.0,0.00516001]
[1756085937117,6.38436959,113070.0,113060.0,0.00516001]
[1756085937322,6.38597959,113070.0,113060.0,0.00516001]
[1756085937978,6.38436959,113070.0,113060.0,0.00516001]
[1756085938615,6.45091891,113070.0,113060.0,0.00516001]
[1756085939253,6.38436959,113070.0,113060.0,0.00516001]
[1756085939437,6.38597959,113070.0,113060.0,0.00516001]
[1756085941034,6.38599448,113070.0,113060.0,0.00516001]
[1756085941274,6.38599448,113070.0,113060.0,0.00302001]
[1756085941510,6.38599448,113070.0,113060.0,0.00516001]
[1756085941764,6.38438448,113070.0,113060.0,0.00516001]
[1756085942018,6.47125413,113070.0,113060.0,0.00516001]
[1756085942250,6.47287413,113070.0,113060.0,0.00516001]
[1756085942467,6.49680526,113070.0,113060.0,0.00516001]
[1756085943518,6.49680827,113070.0,113060.0,0.00516001]
[1756085944149,6.40831862,113070.0,113060.0,0.00516001]
[1756085947709,6.40870862,113070.0,113060.0,1e-08]
[1756085948900,7.27773448,113070.0,113060.0,1e-08]
[1756085949506,7.27672448,113070.0,113060.0,1e-08]
[1756085949925,7.2684196,113070.0,113060.0,1e-08]
[1756085950122,7.27672467,113070.0,113060.0,1e-08]
[1756085950373,7.33771236,113070.0,113060.0,1e-08]
[1756085951631,7.27672467,113070.0,113060.0,1e-08]
[1756085951859,5.54030295,113070.0,113060.0,0.00516001]
[1756085952162,6.40831881,113070.0,113060.0,0.00516001]
[1756085952395,6.40993881,113070.0,113060.0,0.00516001]
[1756085952620,5.54030295,113070.0,113060.0,0.00516001]
[1756085952838,6.38438768,113070.0,113060.0,0.00516001]
[1756085953046,6.37054149,113070.0,113060.0,0.00516001]
[1756085954716,6.28365674,113070.0,113060.0,0.00516001]
[1756085954932,1.39056743,113070.0,113060.0,0.00516001]
[1756085956012,1.40441203,113070.0,113060.0,0.00516001]
[1756085957534,0.53639617,113070.0,113060.0,0.00516001]
[1756085957747,1.40441203,113070.0,113060.0,0.00516001]
[1756085961801,1.40603203,113070.0,113060.0,0.00516001]
[1756085962007,1.40603203,113070.0,113060.0,1e-08]
[1756085962802,1.40603203,113070.0,113060.0,0.00302001]
[1756085963236,1.40603203,113070.0,113060.0,1e-08]
[1756085963840,1.40603203,113070.0,113060.0,0.00302001]
[1756085964039,1.40441203,113070.0,113060.0,0.00516001]
[1756085965806,1.49291678,113070.0,113060.0,1e-08]
[1756085966019,6.44548543,113070.0,113060.0,1e-08]
[1756085967113,6.35861578,113070.0,113060.0,1e-08]
[1756085968319,6.35962578,113070.0,113060.0,1e-08]
[1756085968521,6.34477118,113070.0,113060.0,1e-08]
[1756085970486,6.34477118,113070.0,113060.0,0.00515001]
[1756085970696,6.34477118,113070.0,113060.0,0.00319001]
[1756085971408,6.35861662,113070.0,113060.0,0.00319001]
[1756085971622,6.35861662,113070.0,113060.0,1e-08]
[1756085971863,6.35699662,113070.0,113060.0,0.00515001]
[1756085972048,6.34315118,113070.0,113060.0,0.00515001]
[1756085972539,6.34477118,113070.0,113060.0,0.00515001]
[1756085972747,6.34477118,113070.0,113060.0,0.00319001]
[1756085973978,6.35861662,113070.0,113060.0,0.00319001]
[1756085975502,6.35699662,113070.0,113060.0,0.00515001]
[1756085975687,6.35861662,113070.0,113060.0,0.00515001]
[1756085976156,6.35699662,113070.0,113060.0,0.00515001]
[1756085980533,6.32085569,113070.0,113060.0,0.00515001]
[1756085980734,6.32600569,113070.0,113060.0,0.00515001]
[1756085981158,6.32638569,113070.0,113060.0,1e-08]
[1756085983306,6.33469018,113070.0,113060.0,1e-08]
[1756085985712,6.33469018,113070.0,113060.0,0.00319001]
[1756085985944,6.33469018,113070.0,113060.0,0.00515001]
[1756085986842,6.33431018,113070.0,113060.0,0.00515001]
[1756085989573,6.33431215,113070.0,113060.0,0.00515001]
[1756085990442,6.26656621,113070.0,113060.0,0.00515001]
[1756085990650,0.19787701,113070.0,113060.0,0.00515001]
[1756085990840,1.40589287,113070.0,113060.0,0.00515001]
[1756085991118,1.39204743,113070.0,113060.0,0.00515001]
[1756085992105,1.39104743,113070.0,113060.0,0.00515001]
[1756085992307,1.39004743,113070.0,113060.0,0.00515001]
[1756085994090,1.40389127,113070.0,113060.0,0.00515001]
[1756085997300,0.53587541,113070.0,113060.0,0.00515001]
[1756085997438,1.40389127,113070.0,113060.0,0.00515001]
[1756085998465,0.53587541,113070.0,113060.0,0.00515001]
[1756085998767,1.40389127,113070.0,113060.0,0.00515001]
[1756086001238,1.40551127,113070.0,113060.0,0.00515001]
[1756086001492,1.40389127,113070.0,113060.0,0.00515001]
[1756086004088,1.40551127,113070.0,113060.0,0.00515001]
[1756086004502,1.40551127,113070.0,113060.0,0.00319001]
[1756086004714,1.40551127,113070.0,113060.0,1e-08]
[1756086004967,1.40551127,113070.0,113060.0,0.00530001]
[1756086005450,1.40389127,113070.0,113060.0,0.00530001]
[1756086006040,1.40036127,113070.0,113060.0,0.00530001]
[1756086006944,1.39874127,113070.0,113060.0,0.00530001]
[1756086007455,1.40036127,113070.0,113060.0,0.00530001]
[1756086007665,1.40036127,113070.0,113060.0,0.00316001]
[1756086008104,1.40036127,113070.0,113060.0,1e-08]
[1756086008312,1.40599127,113070.0,113060.0,1e-08]
[1756086013333,1.40599127,113070.0,113060.0,0.00316001]
[1756086013948,1.40599127,113070.0,113060.0,1e-08]
[1756086014450,6.35958502,113070.0,113060.0,1e-08]
[1756086014916,6.35857502,113070.0,113060.0,1e-08]
[1756086017652,6.35857502,113070.0,113060.0,0.00530001]
[1756086017915,6.27007027,113070.0,113060.0,0.00530001]
[1756086018132,5.40205441,113070.0,113060.0,0.00530001]
[1756086018350,6.27007027,113070.0,113060.0,0.00530001]
[1756086018789,6.27169027,113070.0,113060.0,0.00530001]
[1756086019009,6.27169027,113070.0,113060.0,1e-08]
[1756086020623,6.27169027,113070.0,113060.0,0.00530001]
[1756086021212,6.27169027,113070.0,113060.0,0.00316001]
[1756086021434,6.27007027,113070.0,113060.0,0.00530001]
[1756086021895,6.27007027,113070.0,113060.0,0.00630001]
[1756086022108,6.27169027,113070.0,113060.0,0.00630001]
[1756086022537,6.27169027,113070.0,113060.0,0.00930001]
[1756086022759,6.27169027,113070.0,113060.0,0.00716001]
[1756086024220,6.27169027,113070.0,113060.0,0.00930001]
[1756086024878,6.27007027,113070.0,113060.0,0.00930001]
[1756086025737,5.93007027,113070.0,113060.0,0.00930001]
[1756086025951,1.06437127,113070.0,113060.0,0.00930001]
[1756086026380,1.05052743,113070.0,113060.0,0.00930001]
[1756086027446,1.05090743,113070.0,113060.0,0.00930001]
[1756086027853,1.05090743,113070.0,113060.0,0.00400001]
[1756086028724,1.06752119,113070.0,113060.0,0.00400001]
[1756086029879,1.08136559,113070.0,113060.0,0.00400001]
[1756086032795,1.06752119,113070.0,113060.0,0.00400001]
[1756086034440,6.36942372,113070.0,113060.0,0.00400001]
[1756086034854,6.38856763,113070.0,113060.0,0.00400001]
[1756086035077,6.38856771,113070.0,113060.0,0.00400001]
[1756086035290,6.36942372,113070.0,113060.0,0.00400001]
[1756086035732,6.38855995,113070.0,113060.0,0.00400001]
[1756086036182,6.40240518,113070.0,113060.0,0.00400001]
[1756086037361,6.3857865,113070.0,113060.0,0.00400001]
[1756086037603,6.40239422,113070.0,113060.0,0.00400001]
[1756086037971,6.40239294,113070.0,113060.0,0.00400001]
[1756086039734,6.40138294,113070.0,113060.0,0.00400001]
[1756086040607,6.40137494,113070.0,113060.0,0.00400001]
[1756086041169,6.38223871,113070.0,113060.0,0.00400001]
[1756086041400,6.38751504,113070.0,113060.0,0.00400001]
[1756086043795,6.17151614,113070.0,113060.0,0.00400001]
[1756086044005,6.15639458,113070.0,113060.0,0.00400001]
[1756086045437,8.43152056,113070.0,113060.0,0.00400001]
[1756086047109,8.41492084,113070.0,113060.0,0.00400001]
[1756086047316,8.43150584,113070.0,113060.0,0.00400001]
[1756086047782,8.43150562,113070.0,113060.0,0.00400001]
[1756086048880,8.46165753,113070.0,113060.0,0.00400001]
[1756086049968,8.43150562,113070.0,113060.0,0.00100001]
[1756086050202,8.43150562,113070.0,113060.0,0.00200001]
[1756086051145,8.43150562,113070.0,113060.0,1e-08]
[1756086051546,8.43150562,113070.0,113060.0,0.00200001]
[1756086052003,8.44535149,113070.0,113060.0,0.00200001]
[1756086052682,8.45624258,113070.0,113060.0,0.00200001]
[1756086052913,8.44535149,113070.0,113060.0,0.00200001]
[1756086053363,8.44535149,113070.0,113060.0,0.00503001]
[1756086053661,8.4453504,113070.0,113060.0,0.00503001]
[1756086053869,8.46446276,113070.0,113060.0,0.00503001]
[1756086055952,0.17689722,113060.0,113050.0,0.0004]
[1756086056253,7.01436881,113060.0,113050.0,0.0024]
[1756086057063,6.03677952,113060.0,113050.0,0.0024]
[1756086057286,6.04117952,113060.0,113050.0,0.0034]
[1756086057559,6.04117952,113060.0,113050.0,0.0064]
[1756086057871,6.04118083,113060.0,113050.0,0.0064]
[1756086058103,6.04118087,113060.0,113050.0,0.00938]
[1756086058935,6.05502659,113060.0,113050.0,0.00938]
[1756086059393,7.03261757,113060.0,113050.0,0.00938]
[1756086059808,7.54835197,113060.0,113050.0,0.0044]
[1756086060012,7.55665081,113060.0,113050.0,0.0044]
[1756086060670,7.46978116,113060.0,113050.0,0.0044]
[1756086060884,7.46978116,113060.0,113050.0,0.00938]
[1756086061748,7.46978116,113060.0,113050.0,0.0044]
[1756086061961,7.45593544,113060.0,113050.0,0.0044]
[1756086062384,7.47506404,113060.0,113050.0,0.0044]
[1756086063180,7.47506404,113060.0,113050.0,0.00938]
[1756086063391,7.47506404,113060.0,113050.0,0.0044]
[1756086064582,7.47506404,113060.0,113050.0,0.00738]
[1756086065010,7.48891005,113060.0,113050.0,0.00738]
[1756086065637,7.48062797,113060.0,113050.0,0.00738]
[1756086065843,7.48893318,113060.0,113050.0,0.00738]
[1756086066696,7.48893264,113060.0,113050.0,0.00738]
[1756086068336,6.51134166,113060.0,113050.0,0.0044]
[1756086068801,6.51134166,113060.0,113050.0,0.0064]
[1756086069005,6.51134166,113060.0,113050.0,0.00938]
[1756086069444,6.50936166,113060.0,113050.0,0.00938]